fUST/lending_fUST_20250517
["ID","MTS","AMOUNT","RATE_DAILY","PERIOD"]
[361318465,1747463448114,-450.0,0.00013698,2]
[361318466,1747463448123,-450.0,0.00013698,2]
[361318467,1747463448132,-450.0,0.00013698,2]
[361318468,1747463448141,-450.0,0.00013698,2]
[361318469,1747463448151,-450.0,0.00013698,2]
[361318470,1747463448160,-450.0,0.00013698,2]
[361318471,1747463448170,-458.65880799,0.00013698,2]
[361318472,1747463448179,-450.0,0.00013698,2]
[361318474,1747463448188,-457.55176323,0.00013698,2]
[361318475,1747463448196,-450.0,0.00013698,2]
[361318476,1747463448205,-450.0,0.00013698,2]
[361318477,1747463448215,-450.0,0.00013698,2]
[361318478,1747463448224,-450.0,0.00013698,2]
[361318479,1747463448233,-502.79,0.00013698,2]
[361318480,1747463448242,-456.42472747,0.00013698,2]
[361318481,1747463448252,-450.0,0.00013698,2]
[361318482,1747463448261,-450.0,0.00013698,2]
[361318483,1747463448271,-450.0,0.00013698,2]
[361318484,1747463448281,-450.0,0.00013698,2]
[361318485,1747463448291,-510.00812155,0.00013698,2]
[361318486,1747463448300,-5035.38,0.00013698,2]
[361318487,1747463448310,-450.0,0.00013698,2]
[361318488,1747463448319,-450.0,0.00013698,2]
[361318489,1747463448328,-500.02129386,0.00013698,2]
[361318490,1747463448339,-362.335677,0.00013699,2]
[361318491,1747463448352,-500.0,0.00013699,2]
[361318492,1747463448361,-500.0,0.00013699,2]
[361318493,1747463448371,-500.0,0.00013699,2]
[361318494,1747463448380,-500.0,0.00013699,2]
[361318495,1747463448390,-500.0,0.00013699,2]
[361318496,1747463448400,-500.0,0.00013699,2]
[361318497,1747463448409,-500.0,0.00013699,2]
[361318498,1747463448419,-500.0,0.00013699,2]
[361318499,1747463448428,-500.0,0.00013699,2]
[361318500,1747463448438,-500.0,0.00013699,2]
[361318501,1747463448448,-500.0,0.00013699,2]
[361318502,1747463448457,-241.53315009,0.00013699,2]
[361318503,1747463448467,-500.0,0.00013699,2]
[361318504,1747463448476,-500.0,0.00013699,2]
[361318505,1747463448485,-500.0,0.00013699,2]
[361318506,1747463448494,-500.0,0.00013699,2]
[361318507,1747463448503,-500.0,0.00013699,2]
[361318508,1747463448512,-500.0,0.00013699,2]
[361318509,1747463448522,-500.0,0.00013699,2]
[361318510,1747463448532,-1489.43375076,0.00013731,2]
[361318511,1747463448541,-450.0,0.00013835,2]
[361318512,1747463448550,-450.0,0.00013835,2]
[361318513,1747463448559,-450.0,0.00013835,2]
[361318514,1747463448569,-450.0,0.00013835,2]
[361318515,1747463448579,-260.14,0.00013835,2]
[361318516,1747463448588,-450.0,0.00013835,2]
[361318517,1747463448597,-450.0,0.00013835,2]
[361318518,1747463448606,-450.0,0.00013835,2]
[361318519,1747463448616,-450.0,0.00013835,2]
[361318520,1747463448625,-537.14,0.00013835,2]
[361318521,1747463448635,-450.0,0.00013835,2]
[361318522,1747463448644,-450.0,0.00013835,2]
[361318523,1747463448653,-450.0,0.00013835,2]
[361318524,1747463448662,-450.0,0.00013835,2]
[361318525,1747463448671,-450.0,0.00013835,2]
[361318526,1747463448680,-450.0,0.00013835,2]
[361318527,1747463448689,-450.0,0.00013835,2]
[361318528,1747463448699,-450.0,0.00013835,2]
[361318529,1747463448709,-344.77,0.00013835,2]
[361318530,1747463448718,-450.0,0.00013835,2]
[361318531,1747463448727,-450.0,0.00013835,2]
[361318532,1747463448736,-450.0,0.00013835,2]
[361318533,1747463448745,-450.0,0.00013835,2]
[361318534,1747463448755,-503.76412644,0.00013835,2]
[361318535,1747463448764,-450.0,0.00013835,2]
[361318536,1747463448773,-5035.38,0.00013835,2]
[361318537,1747463448782,-410.0495338,0.00013835,2]
[361318538,1747463448792,-3290.32285811,0.000139,2]
[361318539,1747463448801,-450.0,0.00013972,2]
[361318540,1747463448811,-450.0,0.00013972,2]
[361318541,1747463448820,-450.0,0.00013972,2]
[361318542,1747463448829,-513.37,0.00013972,2]
[361318543,1747463448839,-450.0,0.00013972,2]
[361318544,1747463448848,-450.0,0.00013972,2]
[361318545,1747463448858,-450.0,0.00013972,2]
[361318546,1747463448868,-243.93,0.00013972,2]
[361318547,1747463448877,-450.0,0.00013972,2]
[361318548,1747463448886,-450.0,0.00013972,2]
[361318549,1747463449054,-450.0,0.00013972,2]
[361318550,1747463449065,-450.0,0.00013972,2]
[361318551,1747463449074,-392.58145797,0.00013972,2]
[361318552,1747463449083,-157.82,0.00013972,2]
[361318553,1747463449093,-450.0,0.00013972,2]
[361318554,1747463449102,-450.0,0.00013972,2]
[361318555,1747463449111,-473.42,0.00013972,2]
[361318556,1747463449121,-450.0,0.00013972,2]
[361318557,1747463449130,-5035.38,0.00013972,2]
[361318558,1747463449139,-160.0,0.00013986,2]
[361318559,1747463449149,-160.0,0.00013986,2]
[361318560,1747463449158,-351.80144515,0.00014073,2]
[361318561,1747463449168,-450.0,0.00014109,2]
[361318562,1747463449177,-450.0,0.00014109,2]
[361318563,1747463449187,-450.0,0.00014109,2]
[361318564,1747463449196,-450.0,0.00014109,2]
[361318565,1747463449206,-579.17,0.00014109,2]
[361318566,1747463449216,-450.0,0.00014109,2]
[361318567,1747463449225,-367.73691555,0.00014109,2]
[361318568,1747463449234,-450.0,0.00014109,2]
[361318569,1747463449243,-541.09605874,0.00014109,2]
[361318570,1747463449252,-450.0,0.00014109,2]
[361318571,1747463449262,-450.0,0.00014109,2]
[361318572,1747463449271,-450.0,0.00014109,2]
[361318573,1747463449282,-235.75,0.00014109,2]
[361318574,1747463449291,-5035.38,0.00014109,2]
[361318575,1747463449301,-3290.32285799,0.00014245,2]
[361318576,1747463449311,-450.0,0.00014246,2]
[361318577,1747463449321,-450.0,0.00014246,2]
[361318578,1747463449330,-450.0,0.00014246,2]
[361318579,1747463449342,-450.0,0.00014246,2]
[361318580,1747463449353,-450.0,0.00014246,2]
[361318581,1747463449363,-450.0,0.00014246,2]
[361318582,1747463449372,-450.0,0.00014246,2]
[361318583,1747463449382,-5035.38,0.00014246,2]
[361318584,1747463449393,-420.0,0.00014255,2]
[361318585,1747463449403,-420.0,0.00014255,2]
[361318586,1747463449412,-502.01481516,0.00014279,2]
[361318587,1747463449422,-502.07544195,0.00014279,2]
[361318588,1747463449432,-500.0,0.00014279,2]
[361318589,1747463449443,-501.03520293,0.00014279,2]
[361318590,1747463449452,-500.0,0.00014279,2]
[361318591,1747463449462,-1489.43375076,0.00014317,2]
[361318592,1747463449472,-450.0,0.00014383,2]
[361318593,1747463449482,-450.0,0.00014383,2]
[361318594,1747463449492,-450.0,0.00014383,2]
[361318595,1747463449502,-450.0,0.00014383,2]
[361318596,1747463449512,-395.08840946,0.00014383,2]
[361318597,1747463449522,-450.0,0.00014383,2]
[361318598,1747463449531,-450.0,0.00014383,2]
[361318599,1747463449540,-5035.38,0.00014383,2]
[361318600,1747463449550,-636.0,0.000144,2]
[361318601,1747463449559,-547.742,0.00014474,2]
[361318602,1747463449569,-2243.865,0.00014474,2]
[361318603,1747463449578,-709.093,0.00014474,2]
[361318604,1747463449587,-351.80144515,0.00014486,2]
[361318605,1747463449597,-369.2919256,0.00014503,2]
[361318606,1747463449606,-450.0,0.0001452,2]
[361318607,1747463449615,-450.0,0.0001452,2]
[361318608,1747463449624,-450.0,0.0001452,2]
[361318609,1747463449633,-450.0,0.0001452,2]
[361318610,1747463449641,-450.0,0.0001452,2]
[361318611,1747463449650,-5035.38,0.0001452,2]
[361318612,1747463449659,-3290.32285799,0.0001459,2]
[361318613,1747463449667,-450.0,0.00014657,2]
[361318614,1747463449676,-450.0,0.00014657,2]
[361318615,1747463449686,-450.0,0.00014657,2]
[361318616,1747463449694,-513.0,0.00014657,2]
[361318617,1747463449704,-5035.38,0.00014657,2]
[361318618,1747463449713,-450.0,0.00014794,2]
[361318619,1747463449722,-497.29,0.00014794,2]
[361318620,1747463449732,-450.0,0.00014794,2]
[361318621,1747463449741,-5035.38,0.00014794,2]
[361318622,1747463449751,-1000.0,0.00014827,2]
[361318623,1747463449760,-1000.0,0.00014827,2]
[361318624,1747463449769,-165.4676669,0.000149,2]
[361318625,1747463449779,-2995.85273495,0.000149,2]
[361318626,1747463449788,-351.80144515,0.000149,2]
[361318627,1747463449797,-194.7897371,0.00014923,2]
[361318628,1747463449807,-450.0,0.00014931,2]
[361318629,1747463449816,-450.0,0.00014931,2]
[361318630,1747463449826,-5035.38,0.00014931,2]
[361318631,1747463449835,-3290.32285799,0.00014934,2]
[361318632,1747463449844,-500.0,0.00014973,2]
[361318633,1747463449854,-500.0,0.00014973,2]
[361318634,1747463449865,-500.0,0.00014973,2]
[361318635,1747463449875,-500.0,0.00014973,2]
[361318636,1747463449884,-500.0,0.00014973,2]
[361318637,1747463449894,-500.0,0.00014973,2]
[361318638,1747463449904,-546.75783956,0.00015,3]
[361318639,1747463449913,-5149.5101005,0.00015,2]
[361318640,1747463449922,-777520.15621581,0.00015,5]
[361318645,1747464201285,5000.0,0.00012,2]
[361318677,1747464631790,-4135.84959886,0.00013327,2]
[361318678,1747464631799,-1052.61827286,0.00013598,2]
[361318679,1747464631808,-300.0,0.00013696,2]
[361318680,1747464631817,-561.89956553,0.00013697,2]
[361318681,1747464631827,-161.61846786,0.00013697,2]
[361318682,1747464631836,-287.0,0.00013697,2]
[361318683,1747464631845,-450.0,0.00013698,2]
[361318684,1747464631854,-450.0,0.00013698,2]
[361318685,1747464631862,-457.85010458,0.00013698,2]
[361318686,1747464631871,-457.60881042,0.00013698,2]
[361318687,1747464631882,-357.03609032,0.00013698,2]
[361318688,1747464631893,-457.1625648,0.00013698,2]
[361318689,1747464631903,-505.60875418,0.00013698,2]
[361318690,1747464631912,-526.52,0.00013698,2]
[361318691,1747464631920,-567.89284768,0.00013698,2]
[361318692,1747464631931,-397.07319464,0.00013698,2]
[361318693,1747464631940,-403.87251466,0.00013698,2]
[361318694,1747464631949,-450.0,0.00013698,2]
[361318695,1747464631958,-403.50876337,0.00013698,2]
[361318696,1747464631968,-249.77123551,0.00013698,2]
[361318697,1747464631977,-405.04348007,0.00013698,2]
[361318698,1747464631986,-450.0,0.00013698,2]
[361318699,1747464631995,-404.25332064,0.00013698,2]
[361318701,1747464632003,-402.87638586,0.00013698,2]
[361318702,1747464632012,-453.16428144,0.00013698,2]
[361318703,1747464632022,-406.94870264,0.00013698,2]
[361318704,1747464632031,-410.51366137,0.00013698,2]
[361318705,1747464632040,-274.43167577,0.00013698,2]
[361318706,1747464632050,-453.72385991,0.00013698,2]
[361318707,1747464632059,-450.0,0.00013698,2]
[361318708,1747464632068,-453.48094114,0.00013698,2]
[361318709,1747464632077,-406.14692998,0.00013698,2]
[361318710,1747464632086,-459.60726775,0.00013698,2]
[361318711,1747464632096,-420.38235928,0.00013698,2]
[361318712,1747464632105,-299.79922735,0.00013698,2]
[361318713,1747464632115,-456.94151109,0.00013698,2]
[361318714,1747464632125,-457.11223779,0.00013698,2]
[361318715,1747464632134,-450.0,0.00013698,2]
[361318716,1747464632143,-450.0,0.00013698,2]
[361318717,1747464632153,-450.0,0.00013698,2]
[361318718,1747464632162,-450.0,0.00013698,2]
[361318719,1747464632172,-455.42353481,0.00013698,2]
[361318720,1747464632181,-450.0,0.00013698,2]
[361318721,1747464632191,-450.0,0.00013698,2]
[361318722,1747464632200,-200.0,0.00013698,2]
[361318723,1747464632209,-450.0,0.00013698,2]
[361318724,1747464632218,-450.0,0.00013698,2]
[361318725,1747464632228,-401.3855859,0.00013698,2]
[361318726,1747464632237,-450.0,0.00013698,2]
[361318727,1747464632246,-450.0,0.00013698,2]
[361318728,1747464632255,-450.0,0.00013698,2]
[361318729,1747464632263,-450.0,0.00013698,2]
[361318730,1747464632272,-455.89845545,0.00013698,2]
[361318731,1747464632281,-450.0,0.00013698,2]
[361318732,1747464632290,-458.24528176,0.00013698,2]
[361318733,1747464632299,-450.0,0.00013698,2]
[361318734,1747464632308,-450.0,0.00013698,2]
[361318735,1747464632317,-450.0,0.00013698,2]
[361318736,1747464632326,-450.0,0.00013698,2]
[361318737,1747464632335,-450.0,0.00013698,2]
[361318738,1747464632344,-450.0,0.00013698,2]
[361318739,1747464632353,-424.75723629,0.00013698,2]
[361318763,1747464637820,-25.24276371,0.00013698,2]
[361318765,1747464637832,-354.2588451,0.00013698,2]
[361318803,1747464639920,-45.7411549,0.00013698,2]
[361318804,1747464639931,-450.0,0.00013698,2]
[361318805,1747464639940,-450.0,0.00013698,2]
[361318806,1747464639950,-368.35891881,0.00013698,2]
[361319137,1747465832131,-5000.0,0.00012594,2]
[361319138,1747465832141,-702.4267993,0.00012722,2]
[361319139,1747465832150,-320.0,0.00013,10]
[361319140,1747465832159,-300.0,0.00013199,2]
[361319141,1747465832169,-300.0,0.00013199,2]
[361319142,1747465832179,-300.0,0.00013199,2]
[361319143,1747465832188,-921.04098877,0.00013598,2]
[361319144,1747465832198,-300.0,0.00013696,2]
[361319145,1747465832208,-303.37674201,0.00013697,2]
[361319146,1747465832218,-298.804,0.00013698,2]
[361319147,1747465832227,-401.71574444,0.00013698,2]
[361319148,1747465832237,-451.73171211,0.00013698,2]
[361319149,1747465832246,-450.0,0.00013698,2]
[361319150,1747465832255,-455.56880816,0.00013698,2]
[361319151,1747465832265,-495.52,0.00013698,2]
[361319152,1747465832274,-450.0,0.00013698,2]
[361319153,1747465832283,-450.0,0.00013698,2]
[361319154,1747465832292,-450.0,0.00013698,2]
[361319155,1747465832301,-518.01,0.00013698,2]
[361319156,1747465832310,-450.0,0.00013698,2]
[361319157,1747465832319,-530.91,0.00013698,2]
[361319158,1747465832328,-450.0,0.00013698,2]
[361319159,1747465832337,-480.36396894,0.00013698,2]
[361319160,1747465832347,-461.31908817,0.00013698,2]
[361319161,1747465832356,-290.45,0.00013698,2]
[361319162,1747465832365,-450.0,0.00013698,2]
[361319163,1747465832374,-518.81,0.00013698,2]
[361319164,1747465832384,-382.9521481,0.00013698,2]
[361319165,1747465832396,-67.0478519,0.00013698,2]
[361319166,1747465832405,-450.0,0.00013698,2]
[361319167,1747465832414,-450.0,0.00013698,2]
[361319168,1747465832423,-462.73047869,0.00013698,2]
[361319169,1747465832432,-450.0,0.00013698,2]
[361319170,1747465832442,-450.0,0.00013698,2]
[361319171,1747465832451,-456.33518537,0.00013698,2]
[361319172,1747465832460,-519.83097054,0.00013698,2]
[361319173,1747465832469,-461.60806554,0.00013698,2]
[361319174,1747465832479,-450.0,0.00013698,2]
[361319175,1747465832488,-450.0,0.00013698,2]
[361319176,1747465832497,-458.18906913,0.00013698,2]
[361319177,1747465832506,-450.0,0.00013698,2]
[361319178,1747465832516,-451.29206435,0.00013698,2]
[361319179,1747465832525,-450.0,0.00013698,2]
[361319180,1747465832534,-547.99,0.00013698,2]
[361319181,1747465832543,-450.0,0.00013698,2]
[361319182,1747465832551,-450.0,0.00013698,2]
[361319183,1747465832560,-534.82097902,0.00013698,2]
[361319184,1747465832569,-456.06139766,0.00013698,2]
[361319185,1747465832578,-154.14609574,0.00013698,2]
[361319186,1747465832587,-450.0,0.00013698,2]
[361319187,1747465832596,-450.0,0.00013698,2]
[361319188,1747465832605,-450.0,0.00013698,2]
[361319189,1747465832613,-186.92391769,0.00013698,2]
[361319190,1747465832625,-450.0,0.00013698,2]
[361319191,1747465832634,-450.0,0.00013698,2]
[361319192,1747465832643,-462.69293966,0.00013698,2]
[361319193,1747465832652,-445.0,0.00013698,2]
[361319194,1747465832663,-154.30874281,0.00013698,2]
[361319195,1747465832672,-450.0,0.00013698,2]
[361319196,1747465832681,-450.0,0.00013698,2]
[361319197,1747465832691,-450.0,0.00013698,2]
[361319198,1747465832703,-281.33995397,0.00013698,2]
[361319199,1747465832713,-450.0,0.00013698,2]
[361319200,1747465832722,-486.95,0.00013698,2]
[361319201,1747465832732,-425.67988724,0.00013698,2]
[361319202,1747465832741,-450.0,0.00013698,2]
[361319203,1747465832750,-536.37221837,0.00013698,2]
[361319204,1747465832760,-450.0,0.00013698,2]
[361319205,1747465832768,-450.0,0.00013698,2]
[361319206,1747465832778,-2956.06,0.00013698,2]
[361319207,1747465832787,-366.461553,0.00013699,2]
[361319208,1747465832796,-233.301695,0.00013699,2]
[361319209,1747465832806,-500.0,0.00013707,2]
[361319210,1747465832815,-215.21,0.00013835,2]
[361319211,1747465832825,-361.08,0.00013835,2]
[361319212,1747465832834,-450.0,0.00013835,2]
[361319213,1747465832843,-450.0,0.00013835,2]
[361319214,1747465832853,-564.57,0.00013835,2]
[361319215,1747465832862,-450.0,0.00013835,2]
[361319216,1747465832871,-450.0,0.00013835,2]
[361319217,1747465832880,-531.64108119,0.00013835,2]
[361319218,1747465832889,-450.0,0.00013835,2]
[361319219,1747465832899,-422.12,0.00013835,2]
[361319220,1747465832909,-450.0,0.00013835,2]
[361319221,1747465832918,-450.0,0.00013835,2]
[361319222,1747465832928,-486.95,0.00013835,2]
[361319223,1747465832938,-450.0,0.00013835,2]
[361319224,1747465832948,-352.89333335,0.00013835,2]
[361319225,1747465832957,-199.29226296,0.00013835,2]
[361319226,1747465832967,-2956.06,0.00013835,2]
[361319227,1747465832976,-196.0,0.000139,2]
[361319228,1747465832985,-450.0,0.00013972,2]
[361319229,1747465832995,-334.97,0.00013972,2]
[361319230,1747465833004,-450.0,0.00013972,2]
[361319231,1747465833014,-450.0,0.00013972,2]
[361319232,1747465833023,-450.0,0.00013972,2]
[361319233,1747465833032,-450.0,0.00013972,2]
[361319234,1747465833041,-486.95,0.00013972,2]
[361319235,1747465833052,-450.0,0.00013972,2]
[361319236,1747465833062,-55.06982629,0.00013972,2]
[361319237,1747465833075,-379.42100616,0.00013972,2]
[361319348,1747465840296,-339.98118669,0.000132,2]
[361319349,1747465840308,-4089.07603042,0.000132,2]
[361319350,1747465840318,-4429.0572171,0.00013314,2]
[361319351,1747465840327,-698.8864884,0.00013728,2]
[361319422,1747465845558,-426.94,0.00013698,2]
[361319424,1747465845567,-42.66660191,0.00013728,2]
[361319426,1747465845579,-3687.50412679,0.00013728,2]
[361319428,1747465845588,-5000.0,0.00013832,2]
[361319430,1747465845598,-2521.56916755,0.00013972,2]
[361319432,1747465845607,-12634.18372584,0.00013976,2]
[361319434,1747465845616,-160.0,0.00013976,2]
[361319436,1747465845626,-160.0,0.00013976,2]
[361319439,1747465845636,-160.0,0.00013976,2]
[361319442,1747465845645,-212.29844686,0.00013976,2]
[361319444,1747465845657,-160.0,0.00013976,2]
[361319446,1747465845667,-998.40506679,0.00013976,2]
[361319448,1747465845676,-422.46777649,0.00013976,2]
[361319450,1747465845685,-177.98024956,0.00014009,2]
[361319452,1747465845695,-198.2811549,0.00014098,2]
[361319454,1747465845704,-151.87063611,0.00014098,2]
[361319456,1747465845714,-207.4,0.00014098,2]
[361319458,1747465845724,-450.0,0.00014109,2]
[361319460,1747465845734,-450.0,0.00014109,2]
[361319462,1747465845744,-450.0,0.00014109,2]
[361319464,1747465845754,-450.0,0.00014109,2]
[361319466,1747465845764,-486.95,0.00014109,2]
[361319468,1747465845773,-450.0,0.00014109,2]
[361319470,1747465845783,-2956.06,0.00014109,2]
[361319472,1747465845792,-4429.0572171,0.00014141,2]
[361319474,1747465845802,-177.98024953,0.00014232,2]
[361319476,1747465845812,-250.33,0.00014246,2]
[361319478,1747465845821,-450.0,0.00014246,2]
[361319480,1747465845831,-177.7,0.00014246,2]
[361319482,1747465845840,-450.0,0.00014246,2]
[361319484,1747465845850,-486.95,0.00014246,2]
[361319486,1747465845859,-255.64,0.00014246,2]
[361319488,1747465845868,-2956.06,0.00014246,2]
[361319490,1747465845878,-404.0,0.00014372,2]
[361319492,1747465845887,-450.0,0.00014383,2]
[361319494,1747465845897,-450.0,0.00014383,2]
[361319496,1747465845906,-486.95,0.00014383,2]
[361319498,1747465845915,-2956.06,0.00014383,2]
[361319500,1747465845925,-177.98024953,0.00014455,2]
[361319502,1747465845934,-420.0,0.00014472,2]
[361319504,1747465845943,-150.093,0.00014475,2]
[361319506,1747465845953,-546.0,0.00014475,2]
[361319508,1747465845962,-2237.0,0.00014475,2]
[361319509,1747465845971,-707.434,0.00014475,2]
[361319510,1747465845980,-921.04098873,0.00014498,2]
[361319511,1747465845989,-450.0,0.0001452,2]
[361319512,1747465845998,-450.0,0.0001452,2]
[361319513,1747465846008,-486.95,0.0001452,2]
[361319514,1747465846017,-2956.06,0.0001452,2]
[361319515,1747465846026,-4429.0572171,0.00014555,2]
[361319516,1747465846035,-636.0,0.000146,2]
[361319517,1747465846046,-450.0,0.00014657,2]
[361319518,1747465846057,-450.0,0.00014657,2]
[361319519,1747465846068,-486.95,0.00014657,2]
[361319520,1747465846078,-2956.06,0.00014657,2]
[361319521,1747465846087,-177.98024953,0.00014677,2]
[361319522,1747465846096,-450.0,0.00014794,2]
[361319523,1747465846105,-450.0,0.00014794,2]
[361319524,1747465846114,-486.95,0.00014794,2]
[361319525,1747465846123,-1355.59391361,0.00014794,2]
[361319532,1747465862976,250.93,0.00012,2]
[361319534,1747466104326,-664.285549,0.00026035,35]
[361319535,1747466104353,-854.81114979,0.00026035,30]
[361319536,1747466104380,-1819.81524432,0.00026035,60]
[361319537,1747466104405,-151.45821603,0.00026035,31]
[361319538,1747466104432,-963.13252569,0.00026035,120]
[361319539,1747466104458,-1407.08258113,0.00026035,30]
[361319540,1747466104484,-12670.62,0.00026035,120]
[361319541,1747466104509,-15433.21086647,0.00026035,30]
[361319542,1747466104536,-552.56560454,0.00026035,30]
[361319543,1747466104561,-357.50890897,0.00026035,30]
[361319544,1747466104589,-451.95439304,0.00026035,30]
[361319545,1747466114189,-200.0,0.00024911,120]
[361319546,1747466114218,-296.0,0.00025,120]
[361319547,1747466114244,-2000.9789289,0.00025,120]
[361319548,1747466114270,-200.0,0.00025129,120]
[361319549,1747466114305,-200.0,0.00025929,120]
[361319550,1747466114339,-1102.59836474,0.00026137,120]
[361319551,1747466114369,-2999.999999,0.00027,120]
[361319552,1747466182131,500.0,0.00025035,120]
[361319553,1747466182891,500.0,0.00025035,120]
[361319554,1747466183652,500.0,0.00025035,120]
[361319555,1747466184688,500.0,0.00025035,120]
[361319556,1747466185340,500.0,0.00025035,120]
[361319557,1747466186123,500.0,0.00025035,120]
[361319558,1747466187266,500.0,0.00025035,120]
[361319559,1747466188023,500.0,0.00025035,120]
[361319560,1747466189064,500.0,0.00025035,120]
[361319561,1747466189827,500.0,0.00025035,120]
[361319562,1747466190792,500.0,0.00025035,120]
[361319563,1747466191569,500.0,0.00025035,120]
[361319564,1747466192579,614.480047,0.00027397,120]
[361319565,1747466192727,500.0,0.00025035,120]
[361319566,1747466193487,500.0,0.00025035,120]
[361319567,1747466194336,500.0,0.00025035,120]
[361319568,1747466195038,500.0,0.00025035,120]
[361319569,1747466195816,500.0,0.00025035,120]
[361319570,1747466196955,500.0,0.00025035,120]
[361319571,1747466197732,500.0,0.00025035,120]
[361319572,1747466198548,500.0,0.00025035,120]
[361319573,1747466199305,500.0,0.00025035,120]
[361319575,1747466200453,500.0,0.00025035,120]
[361319576,1747466201325,500.0,0.00025035,120]
[361319577,1747466202094,500.0,0.00025035,120]
[361319578,1747466202876,500.0,0.00025035,120]
[361319579,1747466203630,649.35,0.00025035,120]
[361319580,1747466225813,259.55279606,0.00027397,120]
[361319581,1747466237182,907.46124606,0.00027397,120]
[361319582,1747466243387,160.0,0.00026035,30]
[361319583,1747466243957,160.0,0.00026035,30]
[361319584,1747466244428,160.0,0.00026035,30]
[361319585,1747466244946,2859.09755588,0.00027397,120]
[361319586,1747466245203,160.0,0.00026035,30]
[361319587,1747466245245,306.5,0.00027397,120]
[361319588,1747466245752,305.099999,0.00026035,30]
[361319589,1747466250797,200.0,0.00026417,120]
[361319590,1747466269478,500.0,0.00025035,120]
[361319591,1747466270241,500.0,0.00025035,120]
[361319592,1747466271000,500.0,0.00025035,120]
[361319593,1747466271792,500.0,0.00025035,120]
[361319594,1747466272563,500.0,0.00025035,120]
[361319595,1747466273347,500.0,0.00025035,120]
[361319596,1747466274119,500.0,0.00025035,120]
[361319597,1747466275995,500.0,0.00025035,120]
[361319598,1747466341735,500.0,0.00025035,120]
[361319599,1747466345660,5797.2,0.00026035,30]
[361319600,1747466355828,500.0,0.00026035,30]
[361319601,1747466356800,500.0,0.00026035,30]
[361319602,1747466357118,500.0,0.00026035,30]
[361319603,1747466357362,500.0,0.00026035,30]
[361319604,1747466357657,500.0,0.00026035,30]
[361319605,1747466357891,500.0,0.00026035,30]
[361319606,1747466358135,454.96971162,0.00026035,30]
[361319607,1747466370822,200.0,0.00027306,120]
[361319608,1747466378501,296.0,0.00026,120]
[361319610,1747466444488,200.0,0.00027,120]
[361319611,1747466448101,382.03752,0.00027,120]
[361319612,1747466478920,1000.0,0.00027,120]
[361319613,1747466504627,500.0,0.00026035,30]
[361319614,1747466504851,500.0,0.00026035,30]
[361319615,1747466505095,500.0,0.00026035,30]
[361319616,1747466505336,500.0,0.00026035,30]
[361319617,1747466505587,555.18247673,0.00026035,30]
[361319618,1747466541124,160.0,0.00026035,30]
[361319619,1747466541470,160.0,0.00026035,30]
[361319620,1747466541855,160.0,0.00026035,30]
[361319621,1747466542236,160.0,0.00026035,30]
[361319622,1747466542802,305.099999,0.00026035,30]
[361319623,1747466569352,2000.0,0.00026035,30]
[361319624,1747466569555,1000.0,0.00027,120]
[361319625,1747466570067,2000.0,0.00026035,30]